fUSD/lending_fUSD_20260305
["ID","MTS","AMOUNT","RATE_DAILY","PERIOD"]
[407733495,1772713841931,-500.0,0.00018069,2]
[407733496,1772713841940,-250.0,0.00018069,2]
[407733497,1772713841950,-250.0,0.00018069,2]
[407733498,1772713841959,-500.0,0.00018069,2]
[407733499,1772713841968,-250.0,0.00018069,2]
[407733500,1772713841978,-500.0,0.00018069,2]
[407733501,1772713841987,-250.0,0.00018069,2]
[407733502,1772713841996,-500.0,0.00018069,2]
[407733503,1772713842006,-250.0,0.00018069,2]
[407733504,1772713842016,-500.0,0.00018069,2]
[407733505,1772713842025,-269.917619,0.00018069,2]
[407733506,1772713842034,-300.0,0.00018069,2]
[407733507,1772713842043,-209.40437684,0.00018069,2]
[407733508,1772713842053,-300.0,0.00018069,2]
[407733509,1772713842063,-300.0,0.00018069,2]
[407733510,1772713842072,-300.0,0.00018069,2]
[407733511,1772713842081,-1428.38747117,0.00018069,2]
[407733512,1772713842091,-300.0,0.00018069,2]
[407733513,1772713842109,-300.0,0.00018069,2]
[407733514,1772713842119,-300.0,0.00018069,2]
[407733515,1772713842129,-300.0,0.00018069,2]
[407733516,1772713842139,-305.95163096,0.00018069,2]
[407733517,1772713842149,-693.3919763,0.00018069,2]
[407733518,1772713842159,-262.90206542,0.00018069,2]
[407733519,1772713842169,-151.0,0.00018069,2]
[407733520,1772713842179,-693.3919763,0.00018069,2]
[407733521,1772713842188,-151.0,0.00018124,2]
[407733522,1772713842198,-719.04747942,0.00018124,2]
[407733523,1772713842207,-217.17,0.0001814,2]
[407733524,1772713842217,-1141.96593244,0.00018156,2]
[407733525,1772713842226,-1128.37866891,0.00018156,2]
[407733526,1772713842236,-1068.32463515,0.00018156,2]
[407733527,1772713842246,-1143.68259574,0.00018156,2]
[407733528,1772713842255,-1921.02698289,0.00018156,2]
[407733529,1772713842264,-151.0,0.00018179,2]
[407733530,1772713842274,-745.65223616,0.00018179,2]
[407733531,1772713842283,-166.66,0.00018199,2]
[407733532,1772713842292,-151.0,0.00018234,2]
[407733533,1772713842302,-773.2413689,0.00018234,2]
[407733534,1772713842311,-151.0,0.00018289,2]
[407733535,1772713842320,-801.85129955,0.00018289,2]
[407733536,1772713842330,-329.62,0.00018296,2]
[407733537,1772713842339,-153.46,0.00018303,2]
[407733538,1772713842349,-6240.36,0.00018303,2]
[407733539,1772713842358,-8065.4385506,0.00018327,2]
[407733540,1772713842367,-151.0,0.00018344,2]
[407733541,1772713842377,-831.51979763,0.00018344,2]
[407733542,1772713842386,-278.27500956,0.00018371,2]
[407733543,1772713842395,-304.08,0.00018396,2]
[407733544,1772713842404,-151.0,0.00018399,2]
[407733545,1772713842413,-862.28603014,0.00018399,2]
[407733546,1772713842422,-302.31407479,0.000184,2]
[407733547,1772713842432,-217.17,0.0001841,2]
[407733548,1772713842441,-671.46,0.00018423,2]
[407733549,1772713842451,-1579.21242906,0.00018423,2]
[407733550,1772713842461,-4068.95726288,0.00018423,2]
[407733551,1772713842469,-83169.8243,0.00018427,2]
[407733552,1772713842479,-1000.0,0.00018427,2]
[407733553,1772713842488,-151.0,0.00018454,2]
[407733554,1772713842497,-894.19061326,0.00018454,2]
[407733555,1772713842506,-286.0,0.00018481,2]
[407733556,1772713842515,-420.0,0.00018482,2]
[407733557,1772713842524,-151.3078191,0.00018508,2]
[407733558,1772713842533,-151.0,0.00018509,2]
[407733559,1772713842542,-927.27566595,0.00018509,2]
[407733560,1772713842553,-970.48795508,0.00018511,5]
[407733561,1772713842562,-1180.01532193,0.00018515,5]
[407733562,1772713842571,-500.0,0.0001852,2]
[407733563,1772713842580,-501.17854448,0.0001852,2]
[407733564,1772713842589,-500.0,0.0001852,2]
[407733565,1772713842598,-500.0,0.00018521,2]
[407733566,1772713842607,-500.0,0.00018521,2]
[407733567,1772713842616,-500.0,0.00018521,2]
[407733568,1772713842625,-500.0,0.00018521,2]
[407733569,1772713842634,-500.0,0.00018521,2]
[407733570,1772713842643,-500.0,0.00018521,2]
[407733571,1772713842653,-500.0,0.00018521,2]
[407733572,1772713842662,-500.0,0.00018521,2]
[407733573,1772713842671,-500.0,0.00018521,2]
[407733574,1772713842680,-500.0,0.00018521,2]
[407733575,1772713842688,-500.0,0.00018521,2]
[407733576,1772713842698,-500.0,0.00018521,2]
[407733577,1772713842707,-500.0,0.00018521,2]
[407733578,1772713842717,-500.0,0.00018521,2]
[407733579,1772713842726,-500.0,0.00018521,2]
[407733580,1772713842736,-500.0,0.00018521,2]
[407733581,1772713842746,-500.0,0.00018521,2]
[407733582,1772713842757,-500.0,0.00018521,2]
[407733583,1772713842766,-500.0,0.00018521,2]
[407733584,1772713842776,-500.0,0.00018521,2]
[407733585,1772713842786,-500.0,0.00018521,2]
[407733586,1772713842795,-574.31455496,0.00018521,2]
[407733587,1772713842804,-500.0,0.00018521,2]
[407733588,1772713842814,-500.0,0.00018521,2]
[407733589,1772713842823,-500.0,0.00018521,2]
[407733590,1772713842835,-500.0,0.00018521,2]
[407733591,1772713842845,-500.0,0.00018521,2]
[407733592,1772713842856,-500.0,0.00018521,2]
[407733593,1772713842866,-500.0,0.00018521,2]
[407733594,1772713842876,-529.82755712,0.00018522,2]
[407733595,1772713842886,-500.0,0.00018522,2]
[407733596,1772713842896,-500.0,0.00018522,2]
[407733597,1772713842906,-500.0,0.00018522,2]
[407733598,1772713842915,-500.0,0.00018522,2]
[407733599,1772713842927,-198.60431074,0.00018522,2]
[407733600,1772713842936,-500.0,0.00018522,2]
[407733601,1772713842946,-500.0,0.00018522,2]
[407733603,1772713842956,-211.30357891,0.00018522,2]
[407733604,1772713842965,-191.9447673,0.00018522,2]
[407733606,1772713842975,-56305.58295118,0.00018523,2]
[407733608,1772713844743,-500.0,0.00018521,2]
[407733609,1772713844753,-500.0,0.00018521,2]
[407733610,1772713844762,-1343.68669856,0.00018523,2]
[407733611,1772713844909,-6401.67956377,0.00018523,2]
[407733612,1772713844965,-17468.55119466,0.00018523,2]
[407733613,1772713844977,-4131.7238808,0.00018523,2]
[407733614,1772713845022,-1571.09713304,0.00018523,2]
[407733623,1772713845954,-10989.28517487,0.00018523,2]
[407733624,1772713845967,-608.21731146,0.00018523,2]
[407733625,1772713845980,-400.88914376,0.00018523,2]
[407733626,1772713846011,-1434.61950838,0.00018523,2]
[407733627,1772713846121,-1180.95304529,0.00018523,2]
[407733628,1772713846231,-576.91883677,0.00018523,2]
[407733629,1772713846243,-4079.33181251,0.00018523,2]
[407733630,1772713846255,-15749.9597544,0.00018523,2]
[407733631,1772713846267,-723.17546489,0.00018523,2]
[407733632,1772713846288,-547.44,0.00018523,2]
[407733673,1772713936279,500.0,0.00012,2]
[407733674,1772713936447,500.0,0.00012,2]
[407733675,1772713988759,157.0,0.00016289,2]
[407733676,1772713989068,157.0,0.00016289,2]
[407733677,1772713992955,152.0,0.00016289,2]
[407733678,1772714049425,157.0,0.00016289,2]
[407733679,1772714052549,152.0,0.00016289,2]
[407733680,1772714542698,500.0,0.000151,30]
[407733681,1772714611086,4077.34,0.00016289,2]
[407733682,1772714620179,422.67,0.000131,5]
[407733683,1772714620209,4380.33,0.000131,5]
[407733684,1772714744945,619.68,8.452e-05,2]
[407733685,1772714744970,442.09,8.452e-05,2]
[407733686,1772714745036,1061.77,8.897e-05,2]
[407733687,1772714745088,1061.77,9.342e-05,2]
[407733688,1772714745123,1061.77,9.786e-05,2]
[407733689,1772714745182,1061.77,0.00010231,2]
[407733690,1772714745262,310.84,0.00010676,2]
[407733691,1772714745285,750.93,0.00010676,2]
[407733692,1772714745350,1061.77,0.00011121,2]
[407733693,1772714745574,1061.77,0.00011566,2]
[407733694,1772714745780,1061.77,0.00012011,2]
[407733695,1772714745999,1061.77,0.00012456,2]
[407733696,1772714746198,2.0,0.000129,2]
[407733697,1772714746220,1059.77,0.000129,2]
[407733698,1772714746418,1061.77,0.00013345,2]
[407733699,1772714746822,1061.77,0.0001379,2]
[407733700,1772714747021,1061.77,0.00014235,2]
[407733701,1772714747219,1061.77,0.0001468,2]
[407733702,1772714747429,1061.77,0.00015125,2]
[407733703,1772714748234,1061.77,0.00015569,2]
[407733704,1772714748279,1061.77,0.00016014,2]
[407733705,1772714835894,500.0,0.00012,2]
[407733706,1772714835964,500.0,0.00012,2]
[407733707,1772714835998,500.0,0.00012,2]
[407733708,1772714836033,7.85,0.00012,2]
[407733709,1772714836061,492.15,0.00012,2]
[407733710,1772714836104,500.0,0.00012,2]
[407733711,1772714836469,500.0,0.00012,2]
[407733712,1772714836504,500.0,0.00011289,2]
[407733713,1772714836539,500.0,0.00012,2]
[407733714,1772714836959,500.0,0.00012,2]
[407733715,1772714837007,500.0,0.00011289,2]
[407733716,1772714837210,500.0,0.00012,2]
[407733717,1772714837468,500.0,0.00011289,2]
[407733718,1772714837969,500.0,0.00011289,2]
[407733719,1772714838214,500.0,0.00011289,2]
[407733720,1772714838747,942.63241699,0.00011289,2]
[407733721,1772714843824,500.0,0.00012,2]
[407733722,1772714844217,500.0,0.00012,2]
[407733723,1772714844725,500.0,0.00012,2]
[407733724,1772714845239,500.0,0.00011289,2]
[407733725,1772714845278,500.0,0.00012,2]
[407733726,1772714845580,500.0,0.00012,2]
[407733727,1772714847717,500.0,0.00012,2]
[407733728,1772714847768,65.22758301,0.00011289,2]
[407733729,1772714847790,434.77241699,0.00011289,2]
[407733730,1772714847846,500.0,0.00011289,2]
[407733731,1772714847893,500.0,0.00011289,2]
[407733732,1772714847921,500.0,0.00012,2]
[407733733,1772714848371,500.0,0.00012,2]
[407733734,1772714848875,500.0,0.00012,2]
[407733735,1772714849378,500.0,0.00011289,2]
[407733736,1772714849849,500.0,0.00011289,2]
[407733739,1772714954975,418.46,0.00016289,2]
[407733752,1772715032355,-270.0,0.00016289,2]
[407733753,1772715032365,-157.0,0.00016289,2]
[407733754,1772715032374,-152.0,0.00016289,2]
[407733755,1772715032384,-5000.0,0.00016293,2]
[407733756,1772715032393,-247.3537874,0.00016297,2]
[407733757,1772715032402,-298.0,0.00016319,2]
[407733758,1772715032411,-300.0,0.0001632,2]
[407733759,1772715032421,-500.0,0.00016438,30]
[407733760,1772715032431,-1061.77,0.00016459,2]
[407733761,1772715032441,-176.475779,0.00016464,7]
[407733762,1772715032450,-175.193572,0.00016723,7]
[407733763,1772715032459,-113169.8543,0.00016747,2]
[407733764,1772715032468,-226.89,0.0001679,2]
[407733765,1772715032478,-517.0,0.00016846,2]
[407733766,1772715032487,-1500.0,0.00016847,2]
[407733767,1772715032497,-13743.97,0.00016847,2]
[407733768,1772715032506,-14245.13,0.00016847,2]
[407733769,1772715032515,-2000.0,0.00016847,2]
[407733770,1772715032523,-1061.77,0.00016904,2]
[407733771,1772715032532,-790.35312488,0.00017016,2]
[407733772,1772715032542,-1201.97,0.00017031,2]
[407733773,1772715032551,-1000.0,0.00017051,2]
[407733774,1772715032559,-226.89,0.0001706,2]
[407733775,1772715032568,-500.0,0.00017096,2]
[407733776,1772715032577,-226.89,0.0001733,2]
[407733777,1772715032586,-307.65,0.00017357,2]
[407733778,1772715032595,-357.0,0.00017441,2]
[407733779,1772715032605,-646.39,0.00017504,2]
[407733780,1772715032614,-500.0,0.0001753,2]
[407733781,1772715032624,-500.0,0.00017574,2]
[407733782,1772715032633,-226.89,0.000176,2]
[407733783,1772715032642,-439.73,0.00017603,2]
[407733784,1772715032651,-159.69660587,0.00017684,2]
[407733785,1772715032660,-350.0,0.00017752,2]
[407733786,1772715032668,-1414.0,0.00017833,2]
[407733787,1772715032677,-420.0,0.00017837,2]
[407733788,1772715032686,-1089.0,0.00017868,2]
[407733789,1772715032695,-226.89,0.0001787,2]
[407733790,1772715032703,-270.0,0.00017883,3]
[407733791,1772715032712,-1000.14583812,0.000179,2]
[407733792,1772715032721,-151.0,0.00017915,2]
[407733793,1772715032730,-500.0,0.00017918,2]
[407733794,1772715032739,-5000.0,0.00017918,2]
[407733795,1772715032749,-250.0,0.00017918,2]
[407733796,1772715032758,-250.0,0.00017918,2]
[407733797,1772715032766,-300.0,0.00017918,2]
[407733798,1772715032775,-5000.0,0.00017918,2]
[407733799,1772715032784,-300.0,0.00017918,2]
[407733800,1772715032793,-500.0,0.00017926,2]
[407733801,1772715032801,-350.0,0.0001794,2]
[407733802,1772715032811,-2000.0,0.00018,2]
[407733803,1772715032820,-578.20924308,0.00018068,2]
[407733804,1772715032829,-209.40437684,0.00018068,2]
[407733805,1772715032838,-151.0,0.00018068,2]
[407733806,1772715032847,-174.61919141,0.00018068,2]
[407733807,1772715032856,-262.90206542,0.00018068,2]
[407733808,1772715032865,-209.40437684,0.00018068,2]
[407733809,1772715032875,-693.3919763,0.00018068,2]
[407733810,1772715032886,-693.3919763,0.00018068,2]
[407733811,1772715032896,-936.45964534,0.00018069,2]
[407733812,1772715032905,-1630.23602728,0.00018069,2]
[407733813,1772715032914,-1482.74276537,0.00018069,2]
[407733814,1772715032923,-452.50735946,0.00018084,2]
[407733815,1772715032933,-452.49,0.00018084,2]
[407733816,1772715032942,-151.0,0.00018123,2]
[407733817,1772715032951,-719.04747942,0.00018123,2]
[407733818,1772715032960,-226.89,0.0001814,2]
[407733819,1772715032969,-350.0,0.00018141,2]
[407733820,1772715032979,-151.0,0.00018178,2]
[407733821,1772715032988,-745.65223616,0.00018178,2]
[407733822,1772715032997,-350.0,0.00018195,2]
[407733823,1772715033006,-151.0,0.00018233,2]
[407733824,1772715033016,-773.2413689,0.00018233,2]
[407733825,1772715033025,-1000.0,0.00018234,2]
[407733826,1772715033035,-1000.0,0.0001824,2]
[407733827,1772715033044,-1000.0,0.0001825,2]
[407733828,1772715033054,-1000.0,0.00018252,2]
[407733829,1772715033063,-150.0,0.00018253,2]
[407733830,1772715033072,-1000.0,0.00018254,2]
[407733831,1772715033081,-1000.0,0.00018263,2]
[407733832,1772715033090,-1000.0,0.00018264,2]
[407733833,1772715033099,-1000.0,0.00018264,2]
[407733834,1772715033108,-1000.0,0.00018267,2]
[407733835,1772715033118,-1000.0,0.00018271,2]
[407733836,1772715033127,-1000.0,0.00018274,2]
[407733837,1772715033136,-150.0,0.00018277,2]
[407733838,1772715033145,-150.0,0.00018278,2]
[407733839,1772715033154,-1000.0,0.00018278,2]
[407733840,1772715033164,-1000.0,0.00018281,2]
[407733841,1772715033173,-1000.0,0.00018283,2]
[407733842,1772715033186,-150.0,0.00018287,2]
[407733843,1772715033195,-150.0,0.00018288,2]
[407733844,1772715033204,-151.0,0.00018288,2]
[407733845,1772715033215,-801.85129955,0.00018288,2]
[407733846,1772715033224,-150.0,0.00018291,2]
[407733847,1772715033234,-1000.0,0.00018294,2]
[407733848,1772715033244,-1000.0,0.00018296,2]
[407733849,1772715033257,-664.50819213,0.00018296,2]
[407733850,1772715033267,-1000.0,0.00018297,2]
[407733851,1772715033276,-1000.0,0.00018302,2]
[407733852,1772715033286,-150.0,0.00018305,2]
[407733853,1772715033295,-1000.0,0.00018313,2]
[407733854,1772715033304,-1000.0,0.0001832,2]
[407733855,1772715033314,-1000.0,0.00018327,2]
[407733856,1772715033324,-1000.0,0.00018329,2]
[407733857,1772715033334,-1000.0,0.0001833,2]
[407733858,1772715033343,-200.0,0.00018331,2]
[407733859,1772715033352,-1000.0,0.00018333,2]
[407733860,1772715033362,-1000.0,0.00018341,2]
[407733861,1772715033371,-151.0,0.00018343,2]
[407733862,1772715033380,-831.51979763,0.00018343,2]
[407733863,1772715033389,-1000.0,0.00018349,2]
[407733864,1772715033399,-1000.0,0.00018356,2]
[407733865,1772715033408,-150.0,0.00018359,2]
[407733866,1772715033417,-350.0,0.00018361,2]
[407733867,1772715033427,-1000.0,0.00018361,2]
[407733868,1772715033436,-1000.0,0.00018364,2]
[407733869,1772715033445,-1000.0,0.00018367,2]
[407733870,1772715033455,-150.0,0.00018369,2]
[407733871,1772715033465,-1000.0,0.00018372,2]
[407733872,1772715033474,-1000.0,0.00018377,2]
[407733873,1772715033483,-1000.0,0.00018378,2]
[407733874,1772715033493,-646.39,0.00018379,2]
[407733875,1772715033502,-1000.0,0.00018384,2]
[407733876,1772715033512,-1000.0,0.00018391,2]
[407733877,1772715033522,-150.0,0.00018392,2]
[407733878,1772715033532,-1000.0,0.00018393,2]
[407733879,1772715033541,-1000.0,0.00018396,2]
[407733880,1772715033551,-882.405446,0.00018397,2]
[407733881,1772715033561,-151.0,0.00018398,2]
[407733882,1772715033570,-862.28603014,0.00018398,2]
[407733883,1772715033579,-1000.0,0.00018399,2]
[407733884,1772715033588,-1000.0,0.00018409,2]
[407733885,1772715033598,-1000.0,0.0001841,2]
[407733886,1772715033608,-226.89,0.0001841,2]
[407733887,1772715033617,-1000.0,0.00018412,2]
[407733888,1772715033627,-1000.0,0.00018412,2]
[407733889,1772715033636,-150.0,0.00018414,2]
[407733890,1772715033645,-1000.0,0.00018417,2]
[407733891,1772715033655,-1000.0,0.00018417,2]
[407733892,1772715033665,-8330.44479362,0.00018422,2]
[407733893,1772715033675,-4068.95726288,0.00018423,2]
[407733894,1772715033684,-2062.53903849,0.00018423,2]
[407733895,1772715033695,-1000.0,0.00018424,2]
[407733896,1772715033705,-1000.0,0.00018428,2]
[407733897,1772715033715,-1000.0,0.0001843,2]
[407733898,1772715033724,-1000.0,0.00018431,2]
[407733899,1772715033734,-1000.0,0.00018439,2]
[407733900,1772715033744,-1000.0,0.00018441,2]
[407733901,1772715033754,-1000.0,0.00018444,2]
[407733902,1772715033765,-1000.0,0.00018446,2]
[407733903,1772715033776,-150.0,0.00018446,2]
[407733904,1772715033786,-1000.0,0.00018446,2]
[407733905,1772715033796,-1000.0,0.00018447,2]
[407733906,1772715033806,-150.0,0.00018449,2]
[407733907,1772715033816,-1000.0,0.00018449,2]
[407733908,1772715033826,-151.0,0.00018449,2]
[407733909,1772715033846,-150.0,0.00018451,2]
[407733910,1772715033858,-1000.0,0.00018451,2]
[407733911,1772715033868,-152.70275044,0.00018452,2]
[407733912,1772715033878,-1000.0,0.00018453,2]
[407733913,1772715033888,-151.0,0.00018453,2]
[407733914,1772715033897,-894.19061326,0.00018453,2]
[407733915,1772715033907,-1000.0,0.00018454,2]
[407733916,1772715033917,-1000.0,0.00018455,2]
[407733917,1772715033926,-1000.0,0.00018455,2]
[407733918,1772715033937,-1000.0,0.00018455,2]
[407733919,1772715033947,-1000.0,0.00018459,2]
[407733920,1772715033956,-150.0,0.00018461,2]
[407733921,1772715033966,-150.0,0.00018461,2]
[407733922,1772715033976,-150.0,0.00018464,2]
[407733923,1772715033985,-1000.0,0.00018465,2]
[407733924,1772715033995,-150.0,0.00018465,2]
[407733925,1772715034006,-1000.0,0.00018467,2]
[407733926,1772715034016,-1000.0,0.0001847,2]
[407733927,1772715034026,-1000.0,0.00018473,2]
[407733928,1772715034035,-1000.0,0.00018479,2]
[407733929,1772715034044,-150.0,0.00018481,2]
[407733930,1772715034054,-1000.0,0.00018481,2]
[407733931,1772715034063,-1000.0,0.00018483,2]
[407733932,1772715034073,-1000.0,0.00018489,2]
[407733933,1772715034083,-1000.0,0.00018493,2]
[407733934,1772715034093,-1000.0,0.00018501,2]
[407733935,1772715034103,-1000.0,0.00018502,2]
[407733936,1772715034113,-1000.0,0.00018503,2]
[407733937,1772715034123,-151.3078191,0.00018504,2]
[407733938,1772715034133,-1000.0,0.00018505,2]
[407733939,1772715034142,-151.0,0.00018508,2]
[407733940,1772715034152,-927.27566595,0.00018508,2]
[407733941,1772715034162,-151.0,0.00018512,2]
[407733942,1772715034171,-250.0,0.00018512,2]
[407733943,1772715034184,-250.0,0.00018512,2]
[407733944,1772715034195,-721.12765535,0.00018512,2]
[407733945,1772715034205,-1428.38747117,0.00018512,2]
[407733946,1772715034214,-250.0,0.00018512,2]
[407733947,1772715034224,-250.0,0.00018512,2]
[407733948,1772715034234,-250.0,0.00018512,2]
[407733949,1772715034244,-250.0,0.00018512,2]
[407733950,1772715034256,-500.0,0.00018512,2]
[407733951,1772715034266,-500.0,0.00018512,2]
[407733952,1772715034275,-500.0,0.00018512,2]
[407733953,1772715034285,-500.0,0.00018512,2]
[407733954,1772715034294,-500.0,0.00018512,2]
[407733955,1772715034304,-500.0,0.00018512,2]
[407733956,1772715034314,-500.0,0.00018512,2]
[407733957,1772715034323,-500.0,0.00018512,2]
[407733958,1772715034333,-500.0,0.00018512,2]
[407733959,1772715034342,-500.0,0.00018512,2]
[407733960,1772715034352,-500.0,0.00018512,2]
[407733961,1772715034361,-300.0,0.00018512,2]
[407733962,1772715034371,-300.0,0.00018512,2]
[407733963,1772715034380,-300.0,0.00018512,2]
[407733964,1772715034390,-300.0,0.00018512,2]
[407733965,1772715034400,-300.0,0.00018512,2]
[407733966,1772715034409,-300.0,0.00018512,2]
[407733967,1772715034418,-300.0,0.00018512,2]
[407733968,1772715034428,-300.0,0.00018512,2]
[407733969,1772715034437,-305.95163096,0.00018512,2]
[407733970,1772715034447,-151.0,0.00018512,2]
[407733971,1772715034456,-151.0,0.00018512,2]
[407733972,1772715034466,-151.0,0.00018512,2]
[407733973,1772715034476,-151.0,0.00018512,2]
[407733974,1772715034485,-151.0,0.00018512,2]
[407733975,1772715034495,-151.0,0.00018512,2]
[407733976,1772715034505,-151.0,0.00018512,2]
[407733977,1772715034515,-500.0,0.00018512,2]
[407733978,1772715034525,-151.0,0.00018512,2]
[407733979,1772715034535,-500.0,0.00018512,2]
[407733980,1772715034545,-500.0,0.00018512,2]
[407733981,1772715034555,-500.0,0.00018512,2]
[407733982,1772715034565,-209.40437684,0.00018512,2]
[407733983,1772715034575,-500.0,0.00018512,2]
[407733984,1772715034585,-500.0,0.00018512,2]
[407733985,1772715034595,-500.0,0.00018512,2]
[407733986,1772715034604,-500.0,0.00018512,2]
[407733987,1772715034614,-500.0,0.00018512,2]
[407733988,1772715034624,-167.06940161,0.00018512,2]
[407733989,1772715034633,-269.917619,0.00018512,2]
[407733990,1772715034643,-743.50770149,0.00018512,2]
[407733991,1772715034653,-150.0,0.0001852,2]
[407733992,1772715034663,-155.0,0.00018521,2]
[407733993,1772715034672,-1483.15594492,0.00018521,5]
[407733994,1772715034682,-807.43851947,0.00018521,2]
[407733995,1772715034691,-807.43851947,0.00018521,2]
[407733996,1772715034701,-807.43851947,0.00018521,2]
[407733997,1772715034710,-807.43851947,0.00018521,2]
[407733998,1772715034719,-807.43851947,0.00018521,2]
[407733999,1772715034728,-807.43851947,0.00018521,2]
[407734000,1772715034738,-807.43851947,0.00018521,2]
[407734001,1772715034752,-807.43851947,0.00018521,2]
[407734002,1772715034762,-807.43851947,0.00018521,2]
[407734003,1772715034773,-807.43851947,0.00018521,2]
[407734004,1772715034782,-441.09729053,0.00018521,2]
[407734005,1772715035647,-366.34122894,0.00018521,2]
[407734006,1772715035657,-807.43851947,0.00018521,2]
[407734007,1772715035666,-626.22025159,0.00018521,2]
[407734008,1772715036080,-181.21826788,0.00018521,2]
[407734009,1772715036091,-807.43851947,0.00018521,2]
[407734010,1772715036104,-240.0528931,0.00018521,2]
[407734011,1772715036116,-567.38562637,0.00018521,2]
[407734012,1772715036126,-807.43851947,0.00018521,2]
[407734013,1772715036135,-807.43851947,0.00018521,2]
[407734014,1772715036145,-807.43851947,0.00018521,2]
[407734015,1772715036154,-807.43851947,0.00018521,2]
[407734016,1772715036164,-807.43851947,0.00018521,2]
[407734017,1772715036173,-807.43851947,0.00018521,2]
[407734018,1772715036187,-483.04600832,0.00018521,2]
[407734019,1772715038188,-324.39251115,0.00018521,2]
[407734020,1772715038201,-807.43851947,0.00018521,2]
[407734021,1772715038211,-807.43851947,0.00018521,2]
[407734022,1772715038223,-807.43851947,0.00018521,2]
[407734023,1772715038232,-807.43851947,0.00018521,2]
[407734024,1772715038242,-807.43851947,0.00018521,2]
[407734025,1772715038254,-807.43851947,0.00018521,2]
[407734026,1772715038263,-807.43851947,0.00018521,2]
[407734027,1772715038273,-807.43851947,0.00018521,2]
[407734028,1772715038283,-807.43851947,0.00018521,2]
[407734029,1772715038292,-807.43851947,0.00018521,2]
[407734030,1772715038302,-807.43851947,0.00018521,2]
[407734031,1772715038312,-807.43851947,0.00018521,2]
[407734032,1772715038322,-807.43851947,0.00018521,2]
[407734033,1772715038335,-807.43851947,0.00018521,2]
[407734034,1772715038344,-71.87227526,0.00018521,2]
[407734035,1772715038357,-735.56624421,0.00018521,2]
[407734036,1772715038367,-807.43851947,0.00018521,2]
[407734037,1772715038377,-807.43851947,0.00018521,2]
[407734038,1772715038386,-807.43851947,0.00018521,2]
[407734039,1772715038396,-807.43851947,0.00018521,2]
[407734040,1772715038406,-807.43851947,0.00018521,2]
[407734042,1772715038415,-807.43851947,0.00018521,2]
[407734044,1772715038426,-807.43851947,0.00018521,2]
[407734046,1772715038436,-807.43851947,0.00018521,2]
[407734048,1772715038446,-807.43851947,0.00018521,2]
[407734050,1772715038456,-269.28708056,0.00018521,2]
[407734052,1772715038469,-538.15143891,0.00018521,2]
[407734054,1772715038480,-807.43851947,0.00018521,2]
[407734056,1772715038490,-807.43851947,0.00018521,2]
[407734058,1772715038501,-807.43851947,0.00018521,2]
[407734060,1772715038511,-807.43851947,0.00018521,2]
[407734062,1772715038520,-863.47895475,0.00018521,2]
[407734064,1772715038529,-863.47895475,0.00018521,2]
[407734066,1772715038539,-863.47895475,0.00018521,2]
[407734068,1772715038548,-863.47895475,0.00018521,2]
[407734070,1772715038557,-863.47895475,0.00018521,2]
[407734072,1772715038567,-863.47895475,0.00018521,2]
[407734074,1772715038576,-863.47895475,0.00018521,2]
[407734076,1772715038585,-245.47494578,0.00018521,2]
[407734079,1772715038604,-618.00400897,0.00018521,2]